fUST/lending_fUST_20240826
["ID","MTS","AMOUNT","RATE_DAILY","PERIOD"]
[336043427,1724680172494,-761.79,0.00011618,2]
[336043428,1724680172515,-500.0,0.00011618,2]
[336043429,1724680172537,-500.0,0.00011619,2]
[336043430,1724680172565,-597.71,0.00011619,2]
[336043431,1724680172589,-500.0,0.00011619,2]
[336043432,1724680172610,-1071.16,0.00011619,2]
[336043433,1724680172632,-500.0,0.00011619,2]
[336043434,1724680172653,-500.0,0.00011619,2]
[336043435,1724680172674,-500.0,0.00011619,2]
[336043436,1724680172696,-500.0,0.00011619,2]
[336043437,1724680172719,-500.0,0.00011619,2]
[336043438,1724680172741,-500.0,0.00011619,2]
[336043439,1724680172762,-500.0,0.00011619,2]
[336043440,1724680172783,-605.21,0.00011619,2]
[336043441,1724680172806,-500.0,0.00011619,2]
[336043442,1724680172827,-500.0,0.00011619,2]
[336043443,1724680172849,-500.0,0.00011619,2]
[336043444,1724680172870,-500.0,0.00011619,2]
[336043445,1724680172891,-500.0,0.00011619,2]
[336043446,1724680172912,-936.48,0.00011619,2]
[336043447,1724680172933,-500.0,0.00011619,2]
[336043448,1724680172958,-1036.3,0.00011619,2]
[336043449,1724680172979,-500.0,0.00011619,2]
[336043450,1724680173000,-500.0,0.00011619,2]
[336043451,1724680173022,-510.13552791,0.00011619,2]
[336043452,1724680173048,-915.39,0.00011619,2]
[336043453,1724680173070,-666.66,0.00011619,2]
[336043454,1724680173092,-726.51,0.00011619,2]
[336043455,1724680173115,-765.41,0.00011619,2]
[336043456,1724680173138,-554.94,0.00011619,2]
[336043457,1724680173161,-500.0,0.00011619,2]
[336043458,1724680173184,-500.0,0.00011619,2]
[336043459,1724680173208,-791.95,0.00011619,2]
[336043460,1724680173230,-610.7,0.00011619,2]
[336043461,1724680173253,-880.98,0.00011619,2]
[336043462,1724680173275,-500.0,0.00011619,2]
[336043463,1724680173299,-500.0,0.00011619,2]
[336043464,1724680173320,-500.0,0.00011619,2]
[336043465,1724680173343,-500.0,0.00011619,2]
[336043466,1724680173365,-500.0,0.00011619,2]
[336043467,1724680173387,-500.0,0.00011619,2]
[336043468,1724680173409,-500.0,0.00011619,2]
[336043469,1724680173430,-564.76347475,0.00011619,2]
[336043470,1724680173451,-500.0,0.00011619,2]
[336043471,1724680173473,-1084.0,0.00011619,2]
[336043472,1724680173497,-500.0,0.00011619,2]
[336043473,1724680173519,-604.61,0.00011619,2]
[336043474,1724680173543,-500.0,0.00011619,2]
[336043475,1724680173567,-1200.99,0.00011619,2]
[336043476,1724680173590,-500.0,0.00011619,2]
[336043477,1724680173613,-584.18,0.00011619,2]
[336043478,1724680173635,-1040.56,0.00011619,2]
[336043479,1724680173807,-780.81,0.00011619,2]
[336043480,1724680173874,-500.0,0.00011619,2]
[336043481,1724680173897,-500.0,0.00011619,2]
[336043482,1724680173921,-500.0,0.00011619,2]
[336043483,1724680173946,-500.0,0.00011619,2]
[336043484,1724680173970,-500.0,0.00011619,2]
[336043485,1724680173993,-500.0,0.00011619,2]
[336043486,1724680174017,-597.86,0.00011619,2]
[336043487,1724680174040,-742.26,0.00011619,2]
[336043488,1724680174064,-500.0,0.00011619,2]
[336043489,1724680174087,-500.0,0.00011619,2]
[336043490,1724680174110,-500.0,0.00011619,2]
[336043491,1724680174133,-500.0,0.00011619,2]
[336043492,1724680174158,-500.0,0.00011619,2]
[336043493,1724680174182,-500.0,0.00011619,2]
[336043494,1724680174206,-500.0,0.00011619,2]
[336043495,1724680174231,-1291.38,0.00011619,2]
[336043496,1724680174256,-500.0,0.00011619,2]
[336043497,1724680174280,-500.0,0.00011619,2]
[336043498,1724680174307,-558.25,0.00011619,2]
[336043499,1724680174329,-500.0,0.00011619,2]
[336043500,1724680174352,-572.43,0.00011619,2]
[336043501,1724680174373,-896.14,0.00011619,2]
[336043502,1724680174396,-762.79,0.00011619,2]
[336043503,1724680174419,-773.9,0.00011619,2]
[336043504,1724680174442,-566.41,0.00011619,2]
[336043505,1724680174466,-500.0,0.00011619,2]
[336043506,1724680174490,-911.94,0.00011619,2]
[336043507,1724680174515,-3365.48,0.00011619,2]
[336043508,1724680174539,-803.58,0.00011619,2]
[336043509,1724680174570,-3365.48,0.00011619,2]
[336043510,1724680174595,-3365.48,0.00011619,2]
[336043511,1724680174620,-500.0,0.00011619,2]
[336043512,1724680174643,-622.69,0.00011619,2]
[336043513,1724680174665,-500.0,0.00011619,2]
[336043514,1724680174688,-500.0,0.00011619,2]
[336043515,1724680174711,-500.0,0.00011619,2]
[336043516,1724680174735,-1310.23,0.00011619,2]
[336043517,1724680174757,-500.0,0.00011619,2]
[336043518,1724680174781,-500.0,0.00011619,2]
[336043519,1724680174807,-500.0,0.00011619,2]
[336043520,1724680174831,-779.35,0.00011619,2]
[336043521,1724680174856,-749.45,0.00011619,2]
[336043522,1724680174880,-592.65,0.00011619,2]
[336043523,1724680174905,-2354.66,0.00011619,2]
[336043524,1724680174928,-536.86,0.00011619,2]
[336043525,1724680174954,-556.7,0.00011619,2]
[336043526,1724680174978,-896.49,0.00011619,2]
[336043527,1724680175002,-1000.0,0.00011619,2]
[336043528,1724680175025,-640.74,0.00011619,2]
[336043529,1724680175051,-500.0,0.00011619,2]
[336043530,1724680175073,-500.0,0.00011619,2]
[336043531,1724680175094,-500.0,0.00011619,2]
[336043532,1724680175116,-500.0,0.00011619,2]
[336043533,1724680175138,-822.16,0.00011619,2]
[336043534,1724680175161,-822.16,0.00011619,2]
[336043535,1724680175182,-822.16,0.00011619,2]
[336043536,1724680175204,-822.16,0.00011619,2]
[336043537,1724680175226,-1395.76,0.00011619,2]
[336043538,1724680175248,-825.61,0.00011619,2]
[336043539,1724680175270,-500.0,0.00011619,2]
[336043540,1724680175291,-213.39127348,0.00011619,2]
[336043541,1724680175313,-500.0,0.00011619,2]
[336043542,1724680175335,-500.0,0.00011619,2]
[336043543,1724680175357,-500.0,0.00011619,2]
[336043544,1724680175379,-1087.99,0.00011619,2]
[336043545,1724680175400,-500.0,0.00011619,2]
[336043546,1724680175423,-500.0,0.00011619,2]
[336043547,1724680175445,-500.0,0.00011619,2]
[336043548,1724680175466,-500.0,0.00011619,2]
[336043549,1724680175487,-773.58,0.00011619,2]
[336043550,1724680175510,-500.0,0.00011619,2]
[336043551,1724680175532,-816.17,0.00011619,2]
[336043552,1724680175558,-811.29,0.00011619,2]
[336043553,1724680175579,-500.0,0.00011619,2]
[336043554,1724680175601,-509.23,0.00011619,2]
[336043555,1724680175624,-500.0,0.00011619,2]
[336043556,1724680175645,-908.48,0.00011619,2]
[336043557,1724680175667,-908.48,0.00011619,2]
[336043558,1724680175688,-1503.14,0.00011619,2]
[336043559,1724680175711,-500.0,0.00011619,2]
[336043560,1724680175733,-657.22,0.0001162,2]
[336043561,1724680175755,-500.0,0.0001162,2]
[336043562,1724680175777,-500.0,0.0001162,2]
[336043563,1724680175801,-500.0,0.0001162,2]
[336043564,1724680175822,-500.0,0.0001162,2]
[336043565,1724680175843,-634.0,0.0001162,2]
[336043566,1724680175866,-500.0,0.0001162,2]
[336043567,1724680175889,-500.0,0.0001162,2]
[336043568,1724680175912,-500.0,0.0001162,2]
[336043569,1724680175934,-500.0,0.0001162,2]
[336043570,1724680175959,-500.0,0.0001162,2]
[336043571,1724680175982,-204.34173072,0.0001162,2]
[336043572,1724680176003,-500.0,0.0001162,2]
[336043573,1724680176026,-500.0,0.0001162,2]
[336043574,1724680176054,-566.86701025,0.0001162,2]
[336043575,1724680176076,-500.0,0.0001162,2]
[336043576,1724680176097,-500.0,0.0001162,2]
[336043577,1724680176118,-500.0,0.0001162,2]
[336043578,1724680176139,-500.0,0.0001162,2]
[336043579,1724680176160,-500.0,0.0001162,2]
[336043580,1724680176183,-500.0,0.0001162,2]
[336043581,1724680176204,-500.0,0.0001162,2]
[336043582,1724680176225,-500.0,0.0001162,2]
[336043583,1724680176245,-500.0,0.0001162,2]
[336043584,1724680176267,-355.44969118,0.0001162,2]
[336043585,1724680176289,-500.0,0.0001162,2]
[336043586,1724680176311,-500.0,0.0001162,2]
[336043587,1724680176331,-500.0,0.0001162,2]
[336043588,1724680176354,-500.0,0.0001162,2]
[336043589,1724680176376,-500.0,0.0001162,2]
[336043590,1724680176398,-500.0,0.0001162,2]
[336043591,1724680176420,-500.0,0.0001162,2]
[336043592,1724680176442,-459.53187077,0.0001162,2]
[336043593,1724680176463,-500.0,0.0001162,2]
[336043594,1724680176484,-500.0,0.0001162,2]
[336043595,1724680176507,-1079.05,0.0001162,2]
[336043596,1724680176529,-500.0,0.0001162,2]
[336043597,1724680176551,-500.0,0.0001162,2]
[336043598,1724680176572,-500.0,0.0001162,2]
[336043599,1724680176594,-500.0,0.0001162,2]
[336043600,1724680176615,-500.0,0.0001162,2]
[336043601,1724680176637,-500.0,0.0001162,2]
[336043602,1724680176657,-500.0,0.0001162,2]
[336043603,1724680176683,-500.0,0.0001162,2]
[336043604,1724680176708,-1190.66,0.0001162,2]
[336043605,1724680176733,-500.0,0.0001162,2]
[336043606,1724680176757,-500.0,0.0001162,2]
[336043607,1724680176781,-500.0,0.0001162,2]
[336043608,1724680176810,-500.0,0.0001162,2]
[336043609,1724680176833,-500.0,0.0001162,2]
[336043610,1724680176857,-177.59616055,0.0001162,2]
[336043611,1724680176878,-500.0,0.0001162,2]
[336043612,1724680176900,-500.0,0.0001162,2]
[336043613,1724680176921,-500.0,0.0001162,2]
[336043614,1724680176945,-500.0,0.0001162,2]
[336043615,1724680176967,-500.0,0.0001162,2]
[336043616,1724680176988,-1253.45,0.0001162,2]
[336043617,1724680177009,-500.0,0.0001162,2]
[336043618,1724680177033,-500.0,0.0001162,2]
[336043619,1724680177058,-500.0,0.0001162,2]
[336043620,1724680177244,-500.0,0.0001162,2]
[336043621,1724680177267,-500.0,0.0001162,2]
[336043622,1724680177288,-500.0,0.0001162,2]
[336043623,1724680177314,-500.0,0.0001162,2]
[336043624,1724680177336,-500.0,0.0001162,2]
[336043625,1724680177358,-500.0,0.0001162,2]
[336043626,1724680177381,-500.0,0.0001162,2]
[336043627,1724680177403,-503.74,0.0001162,2]
[336043628,1724680177425,-514.19,0.0001162,2]
[336043629,1724680177446,-500.0,0.0001162,2]
[336043630,1724680177468,-577.5,0.0001162,2]
[336043631,1724680177489,-500.0,0.0001162,2]
[336043632,1724680177511,-500.0,0.0001162,2]
[336043633,1724680177533,-500.0,0.0001162,2]
[336043634,1724680177556,-500.0,0.0001162,2]
[336043635,1724680177577,-500.0,0.0001162,2]
[336043636,1724680177598,-500.0,0.0001162,2]
[336043637,1724680177619,-593.05,0.0001162,2]
[336043638,1724680177640,-1130.12,0.0001162,2]
[336043639,1724680177663,-1224.69,0.0001162,2]
[336043640,1724680177684,-500.0,0.0001162,2]
[336043641,1724680177705,-500.0,0.0001162,2]
[336043642,1724680177731,-1044.02,0.0001162,2]
[336043643,1724680177752,-604.65792644,0.0001162,2]
[336043644,1724680177773,-799.4,0.0001162,2]
[336043645,1724680177798,-500.0,0.0001162,2]
[336043646,1724680177828,-502.27630189,0.0001162,2]
[336043647,1724680177850,-500.0,0.0001162,2]
[336043648,1724680177871,-500.0,0.0001162,2]
[336043649,1724680177892,-500.0,0.0001162,2]
[336043650,1724680177915,-787.39,0.0001162,2]
[336043651,1724680177937,-500.0,0.0001162,2]
[336043652,1724680177962,-853.36,0.0001162,2]
[336043653,1724680177983,-500.0,0.0001162,2]
[336043654,1724680178005,-500.0,0.0001162,2]
[336043655,1724680178027,-537.88016613,0.0001162,2]
[336043656,1724680178048,-500.41994599,0.0001162,2]
[336043657,1724680178070,-579.22,0.0001162,2]
[336043658,1724680178090,-700.68,0.0001162,2]
[336043659,1724680178111,-500.0,0.0001162,2]
[336043660,1724680178134,-500.0,0.0001162,2]
[336043661,1724680178156,-500.0,0.0001162,2]
[336043662,1724680178178,-662.25,0.0001162,2]
[336043663,1724680178199,-626.64,0.0001162,2]
[336043664,1724680178220,-658.55,0.0001162,2]
[336043666,1724680178242,-508.49,0.0001162,2]
[336043667,1724680178263,-500.0,0.0001162,2]
[336043668,1724680178285,-500.0,0.0001162,2]
[336043669,1724680178312,-1426.4,0.0001162,2]
[336043670,1724680178335,-623.70342723,0.0001162,2]
[336043671,1724680178358,-500.0,0.0001162,2]
[336043672,1724680178380,-500.0,0.0001162,2]
[336043673,1724680178402,-500.0,0.0001162,2]
[336043674,1724680178427,-500.0,0.0001162,2]
[336043675,1724680178450,-766.35,0.0001162,2]
[336043676,1724680178471,-500.0,0.0001162,2]
[336043677,1724680178493,-500.0,0.0001162,2]
[336043678,1724680178514,-608.7,0.0001162,2]
[336043679,1724680178538,-680.29,0.0001162,2]
[336043680,1724680178564,-592.89,0.0001162,2]
[336043681,1724680178586,-500.0,0.0001162,2]
[336043682,1724680178608,-605.58,0.0001162,2]
[336043683,1724680178630,-500.0,0.0001162,2]
[336043684,1724680178652,-790.14,0.0001162,2]
[336043685,1724680178675,-500.0,0.0001162,2]
[336043686,1724680178696,-500.0,0.0001162,2]
[336043687,1724680178718,-502.93761345,0.0001162,2]
[336043688,1724680178739,-644.91802753,0.0001162,2]
[336043689,1724680178761,-500.0,0.0001162,2]
[336043690,1724680178783,-500.0,0.0001162,2]
[336043691,1724680178807,-977.7,0.0001162,2]
[336043692,1724680178831,-500.0,0.0001162,2]
[336043693,1724680178855,-542.05434122,0.0001162,2]
[336043694,1724680178879,-500.0,0.0001162,2]
[336043695,1724680178901,-500.0,0.0001162,2]
[336043696,1724680178925,-500.0,0.0001162,2]
[336043697,1724680178951,-500.0,0.0001162,2]
[336043698,1724680178974,-502.90164632,0.0001162,2]
[336043699,1724680178997,-500.0,0.0001162,2]
[336043700,1724680179018,-500.0,0.0001162,2]
[336043701,1724680179041,-857.39,0.0001162,2]
[336043702,1724680179068,-736.63,0.0001162,2]
[336043703,1724680179090,-1066.38,0.0001162,2]
[336043704,1724680179111,-530.16,0.0001162,2]
[336043705,1724680179133,-500.0,0.0001162,2]
[336043706,1724680179154,-500.0,0.0001162,2]
[336043707,1724680179175,-727.1,0.0001162,2]
[336043708,1724680179197,-941.44,0.0001162,2]
[336043709,1724680179218,-521.79832935,0.0001162,2]
[336043710,1724680179240,-500.0,0.0001162,2]
[336043711,1724680179261,-500.0,0.0001162,2]
[336043712,1724680179282,-500.0,0.0001162,2]
[336043713,1724680179305,-500.0,0.0001162,2]
[336043714,1724680179327,-500.0,0.0001162,2]
[336043715,1724680179348,-500.0,0.0001162,2]
[336043716,1724680179369,-500.0,0.0001162,2]
[336043717,1724680179392,-887.09,0.0001162,2]
[336043718,1724680179416,-500.0,0.0001162,2]
[336043719,1724680179438,-500.0,0.0001162,2]
[336043720,1724680179460,-500.0,0.0001162,2]
[336043721,1724680179481,-500.0,0.0001162,2]
[336043722,1724680179504,-500.0,0.0001162,2]
[336043723,1724680179525,-500.0,0.0001162,2]
[336043724,1724680179546,-500.0,0.0001162,2]
[336043725,1724680179568,-500.0,0.0001162,2]
[336043726,1724680179590,-714.71,0.0001162,2]
[336043727,1724680179612,-500.0,0.0001162,2]
[336043728,1724680179633,-500.0,0.0001162,2]
[336043729,1724680179654,-500.0,0.0001162,2]
[336043730,1724680179675,-630.46,0.0001162,2]
[336043731,1724680179696,-507.19310601,0.0001162,2]
[336043732,1724680179721,-519.38,0.0001162,2]
[336043733,1724680179742,-500.0,0.0001162,2]
[336043734,1724680179763,-518.00710361,0.0001162,2]
[336043735,1724680179785,-500.0,0.0001162,2]
[336043736,1724680179808,-760.41,0.0001162,2]
[336043737,1724680179829,-500.0,0.0001162,2]
[336043738,1724680179851,-500.6739883,0.0001162,2]
[336043739,1724680179873,-500.0,0.0001162,2]
[336043740,1724680179898,-554.16,0.0001162,2]
[336043741,1724680179919,-500.0,0.0001162,2]
[336043742,1724680179940,-1002.91,0.0001162,2]
[336043743,1724680179964,-500.0,0.0001162,2]
[336043744,1724680179985,-1274.04,0.0001162,2]
[336043745,1724680180008,-205.91878196,0.0001162,2]
[336043746,1724680180031,-544.41,0.0001162,2]
[336043747,1724680180056,-500.0,0.0001162,2]
[336043748,1724680180077,-500.0,0.0001162,2]
[336043749,1724680180098,-500.0,0.0001162,2]
[336043750,1724680180121,-500.0,0.0001162,2]
[336043751,1724680180143,-524.79,0.0001162,2]
[336043752,1724680180165,-531.20908801,0.0001162,2]
[336043753,1724680180186,-619.82,0.0001162,2]
[336043754,1724680180209,-692.04,0.0001162,2]
[336043755,1724680180230,-500.0,0.0001162,2]
[336043756,1724680180252,-500.0,0.0001162,2]
[336043757,1724680180458,-500.0,0.0001162,2]
[336043758,1724680180481,-500.0,0.0001162,2]
[336043759,1724680180502,-500.0,0.0001162,2]
[336043760,1724680180524,-500.0,0.0001162,2]
[336043761,1724680180549,-739.23,0.0001162,2]
[336043762,1724680180572,-500.0,0.0001162,2]
[336043763,1724680180593,-500.0,0.0001162,2]
[336043764,1724680180614,-670.65,0.0001162,2]
[336043765,1724680180635,-500.0,0.0001162,2]
[336043766,1724680180658,-519.45321061,0.0001162,2]
[336043767,1724680180680,-500.0,0.0001162,2]
[336043768,1724680180702,-500.0,0.0001162,2]
[336043769,1724680180724,-505.70093749,0.0001162,2]
[336043770,1724680180745,-500.0,0.0001162,2]
[336043771,1724680180768,-1215.39,0.0001162,2]
[336043772,1724680180790,-500.0,0.0001162,2]
[336043773,1724680180813,-500.0,0.0001162,2]
[336043774,1724680180836,-500.0,0.0001162,2]
[336043775,1724680180861,-500.0,0.0001162,2]
[336043776,1724680180884,-500.0,0.0001162,2]
[336043777,1724680180906,-500.0,0.0001162,2]
[336043778,1724680180927,-500.0,0.0001162,2]
[336043779,1724680180950,-500.0,0.0001162,2]
[336043780,1724680180974,-1232.98,0.0001162,2]
[336043781,1724680180996,-500.0,0.0001162,2]
[336043782,1724680181018,-500.0,0.0001162,2]
[336043783,1724680181042,-838.63,0.0001162,2]
[336043784,1724680181078,-500.0,0.0001162,2]
[336043785,1724680181099,-500.0,0.0001162,2]
[336043786,1724680181120,-500.0,0.0001162,2]
[336043787,1724680181143,-500.0,0.0001162,2]
[336043788,1724680181166,-508.04033271,0.0001162,2]
[336043789,1724680181187,-500.0,0.0001162,2]
[336043790,1724680181210,-500.0,0.0001162,2]
[336043791,1724680181233,-1342.47,0.0001162,2]
[336043792,1724680181256,-508.68888417,0.0001162,2]
[336043793,1724680181284,-500.0,0.0001162,2]
[336043794,1724680181309,-500.0,0.0001162,2]
[336043795,1724680181331,-1059.7,0.0001162,2]
[336043796,1724680181353,-500.0,0.0001162,2]
[336043797,1724680181377,-500.0,0.0001162,2]
[336043798,1724680181401,-512.19108395,0.0001162,2]
[336043799,1724680181424,-500.0,0.0001162,2]
[336043800,1724680181445,-516.68760384,0.0001162,2]
[336043801,1724680181471,-500.0,0.0001162,2]
[336043802,1724680181495,-500.0,0.0001162,2]
[336043803,1724680181519,-500.0,0.0001162,2]
[336043804,1724680181540,-508.0764141,0.0001162,2]
[336043805,1724680181569,-500.0,0.0001162,2]
[336043806,1724680181592,-651.2,0.0001162,2]
[336043807,1724680181616,-500.0,0.0001162,2]
[336043808,1724680181642,-500.0,0.0001162,2]
[336043809,1724680181665,-683.88,0.0001162,2]
[336043810,1724680181687,-500.0,0.0001162,2]
[336043811,1724680181709,-500.0,0.0001162,2]
[336043812,1724680181731,-509.30452078,0.0001162,2]
[336043813,1724680181752,-500.0,0.0001162,2]
[336043814,1724680181773,-500.0,0.0001162,2]
[336043815,1724680181797,-500.0,0.0001162,2]
[336043816,1724680181819,-500.0,0.0001162,2]
[336043817,1724680181840,-792.99,0.0001162,2]
[336043818,1724680181863,-500.0,0.0001162,2]
[336043819,1724680181886,-500.0,0.0001162,2]
[336043820,1724680181909,-500.46,0.0001162,2]
[336043821,1724680181931,-600.0,0.0001162,2]
[336043822,1724680181954,-500.0,0.0001162,2]
[336043823,1724680181976,-500.0,0.0001162,2]
[336043824,1724680181996,-500.0,0.0001162,2]
[336043825,1724680182017,-430.62158138,0.0001162,2]
[336043826,1724680182040,-500.0,0.0001162,2]
[336043827,1724680182065,-500.0,0.0001162,2]
[336043828,1724680182087,-500.0,0.0001162,2]
[336043829,1724680182112,-1240.14,0.0001162,2]
[336043830,1724680182136,-1209.31,0.0001162,2]
[336043831,1724680182164,-500.0,0.0001162,2]
[336043832,1724680182187,-500.0,0.0001162,2]
[336043833,1724680182209,-500.0,0.0001162,2]
[336043834,1724680182231,-500.0,0.0001162,2]
[336043835,1724680182254,-500.0,0.0001162,2]
[336043836,1724680182275,-691.56,0.0001162,2]
[336043837,1724680182298,-500.0,0.0001162,2]
[336043838,1724680182320,-703.13,0.0001162,2]
[336043839,1724680182342,-500.0,0.0001162,2]
[336043840,1724680182364,-500.0,0.0001162,2]
[336043841,1724680182388,-72.91120532,0.0001162,2]
[336043883,1724680232694,-300.0,0.00011408,2]
[336043885,1724680232705,-21346.62505567,0.00011409,2]
[336043887,1724680232715,-500.0,0.00011519,2]
[336043889,1724680232726,-595.5,0.00011519,2]
[336043892,1724680232736,-500.0,0.00011519,2]
[336043894,1724680232746,-500.0,0.00011519,2]
[336043896,1724680232755,-2804.56,0.00011519,2]
[336043898,1724680232765,-945.72,0.00011519,2]
[336043900,1724680232774,-889.69,0.00011519,2]
[336043902,1724680232784,-500.0,0.00011617,2]
[336043904,1724680232794,-629.74,0.00011617,2]
[336043906,1724680232804,-500.0,0.00011618,2]
[336043908,1724680232814,-85.00762745,0.00011618,2]
[336043919,1724680232911,-414.99237255,0.00011618,2]
[336043921,1724680232922,-500.0,0.00011618,2]
[336043923,1724680232932,-500.0,0.00011618,2]
[336043925,1724680232942,-500.0,0.00011618,2]
[336043927,1724680232952,-243.7832543,0.00011618,2]
[336043929,1724680232969,-142.48270752,0.00011618,2]
[336043931,1724680232979,-292.6703607,0.00011618,2]
[336043933,1724680232991,-366.8896393,0.00011618,2]
[336043935,1724680233003,-500.0,0.00011618,2]
[336043936,1724680233014,-500.0,0.00011618,2]
[336043938,1724680233024,-748.28,0.00011618,2]
[336043940,1724680233036,-500.0,0.00011618,2]
[336043942,1724680233046,-500.0,0.00011618,2]
[336043944,1724680233055,-500.0,0.00011618,2]
[336043946,1724680233066,-500.0,0.00011618,2]
[336043948,1724680233076,-500.0,0.00011618,2]
[336043950,1724680233087,-2804.56,0.00011618,2]
[336043953,1724680233097,-572.94,0.00011618,2]
[336043955,1724680233107,-1237.57,0.00011618,2]
[336043957,1724680233118,-500.0,0.00011618,2]
[336043959,1724680233128,-2804.56,0.00011618,2]
[336043991,1724680233440,-369.31351949,0.00011618,2]
[336043994,1724680233454,-130.68648051,0.00011618,2]
[336043996,1724680233464,-500.0,0.00011618,2]
[336043998,1724680233474,-500.0,0.00011618,2]
[336044000,1724680233485,-518.0,0.00011618,2]
[336044002,1724680233495,-973.75,0.00011618,2]
[336044004,1724680233505,-500.0,0.00011618,2]
[336044006,1724680233515,-81.9202598,0.00011619,2]
[336044200,1724680238709,-950.31,0.00011519,2]
[336044202,1724680238719,-500.0,0.00011618,2]
[336044204,1724680238730,-534.99,0.00011618,2]
[336044206,1724680238739,-419.05052547,0.00011619,2]
[336044208,1724680238750,-878.46,0.00011619,2]
[336044210,1724680238759,-500.0,0.00011619,2]
[336044212,1724680238769,-711.33,0.00011619,2]
[336044214,1724680238779,-500.0,0.00011619,2]
[336044216,1724680238789,-1221.08,0.00011619,2]
[336044218,1724680238799,-500.0,0.00011619,2]
[336044220,1724680238808,-500.0,0.00011619,2]
[336044222,1724680238818,-2804.56,0.00011619,2]
[336044224,1724680238828,-500.0,0.00011619,2]
[336044226,1724680238838,-2804.56,0.00011619,2]
[336044228,1724680238849,-2804.56,0.00011619,2]
[336044230,1724680238859,-2804.56,0.00011619,2]
[336044232,1724680238869,-2804.56,0.00011619,2]
[336044234,1724680238879,-500.0,0.00011619,2]
[336044236,1724680238891,-500.0,0.00011619,2]
[336044238,1724680238901,-853.15,0.00011619,2]
[336044240,1724680238912,-427.08879468,0.0001162,2]
[336044242,1724680238922,-500.0,0.0001162,2]
[336044244,1724680238932,-500.0,0.0001162,2]
[336044247,1724680238942,-504.10350957,0.0001162,2]
[336044249,1724680238952,-207.92078638,0.0001162,2]
[336044251,1724680238965,-500.0,0.0001162,2]
[336044253,1724680238975,-500.0,0.0001162,2]
[336044255,1724680238984,-500.0,0.0001162,2]
[336044257,1724680238993,-500.0,0.0001162,2]
[336044259,1724680239004,-1038.19,0.0001162,2]
[336044261,1724680239014,-718.58,0.0001162,2]
[336044263,1724680239027,-616.73,0.0001162,2]
[336044265,1724680239037,-621.83,0.0001162,2]
[336044267,1724680239047,-500.0,0.0001162,2]
[336044269,1724680239057,-500.0,0.0001162,2]
[336044271,1724680239066,-2111.23,0.0001162,2]
[336044273,1724680239076,-500.0,0.0001162,2]
[336044275,1724680239085,-500.0,0.0001162,2]
[336044277,1724680239094,-500.0,0.0001162,2]
[336044279,1724680239103,-429.76561624,0.0001162,2]
[336044281,1724680239112,-500.0,0.0001162,2]
[336044283,1724680239122,-500.0,0.0001162,2]
[336044285,1724680239132,-500.0,0.0001162,2]
[336044287,1724680239144,-500.0,0.0001162,2]